bitfinex/quotes_BTCUSD_20240815
["timestamp","ask_amount","ask_price","bid_price","bid_amount"]
[1723749387937,0.00992582,57495.0,57489.0,0.173945]
[1723749388141,0.00992582,57495.0,57481.0,0.000821]
[1723749388142,0.00992582,57494.0,57490.0,0.17155454]
[1723749388344,0.08577727,57499.0,57490.0,0.17155454]
[1723749388345,0.09570309,57493.0,57490.0,0.17155454]
[1723749388571,0.17394,57491.0,57490.0,0.17155454]
[1723749388771,1.42082582,57491.0,57490.0,0.17155454]
[1723749389001,0.75401005,57491.0,57490.0,0.17155454]
[1723749389206,1.07294582,57491.0,57490.0,0.17155454]
[1723749389403,1.09196423,57491.0,57490.0,0.17155454]
[1723749389576,1.44977005,57491.0,57490.0,0.17155454]
[1723749389778,1.44977005,57491.0,57481.0,0.000821]
[1723749389779,0.869837,57482.0,57481.0,0.000821]
[1723749389984,1.30354927,57482.0,57481.0,0.17237554]
[1723749390228,0.4626565,57482.0,57465.0,0.51466362]
[1723749390431,0.4626565,57482.0,57468.0,0.17155454]
[1723749390432,0.08577727,57470.0,57468.0,0.17155454]
[1723749390840,0.43375427,57476.0,57468.0,0.17155454]
[1723749390841,0.25976427,57476.0,57468.0,0.17155454]
[1723749391040,0.02890495,57479.0,57471.0,0.17155454]
[1723749391242,0.02890495,57479.0,57458.0,0.255979]
[1723749391243,0.06987166,57490.0,57478.0,0.347959]
[1723749391486,0.06987166,57490.0,57472.0,0.3367]
[1723749391487,0.00993058,57489.0,57482.0,0.17155454]
[1723749391618,0.5412,57491.0,57482.0,0.17155454]
[1723749391958,0.01603619,57490.0,57482.0,0.17155454]
[1723749392159,0.01603619,57489.0,57483.0,0.19111945]
[1723749392360,0.08577727,57493.0,57484.0,0.17155454]
[1723749392361,0.08577727,57487.0,57484.0,0.17155454]
[1723749392590,0.01603619,57486.0,57484.0,0.17155454]
[1723749392753,0.521874,57485.0,57484.0,0.17155454]
[1723749392948,0.53791019,57485.0,57484.0,0.17155454]
[1723749393128,0.53791019,57485.0,57469.0,1.22735492]
[1723749393129,0.173994,57474.0,57463.0,0.3472]
[1723749393330,0.01603619,57473.0,57467.0,0.68621816]
[1723749393528,0.01603619,57472.0,57469.0,0.17155454]
[1723749393733,0.01603618,57471.0,57469.0,0.17155454]
[1723749393931,0.01603618,57471.0,57467.0,0.040808]
[1723749393932,0.01603618,57471.0,57470.0,1.38957854]
[1723749394200,0.02891623,57489.0,57488.0,0.521847]
[1723749394400,0.01604017,57489.0,57471.0,0.3472]
[1723749394610,0.347938,57482.0,57472.0,0.1]
[1723749394806,0.01604017,57481.0,57472.0,0.1]
[1723749394961,0.01604017,57480.0,57472.0,0.1]
[1723749395346,0.01603255,57479.0,57473.0,0.17155454]
[1723749395559,0.01603255,57478.0,57473.0,0.17155454]
[1723749395762,0.01603255,57477.0,57474.0,0.17155454]
[1723749395966,0.11469552,57483.0,57475.0,0.34554154]
[1723749395967,0.01603255,57476.0,57475.0,0.34554154]
[1723749396112,0.173967,57482.0,57475.0,0.30058087]
[1723749396316,0.173956,57486.0,57477.0,0.173981]
[1723749396578,0.347878,57492.0,57479.0,0.51950254]
[1723749396725,0.34788,57491.0,57479.0,0.51950554]
[1723749396924,0.08577727,57496.0,57480.0,0.26951483]
[1723749396925,0.08577727,57483.0,57480.0,0.26951483]
[1723749397125,0.17397,57481.0,57480.0,0.17155454]
[1723749397321,0.173968,57482.0,57480.0,0.17155454]
[1723749397525,0.08577727,57483.0,57478.0,0.000821]
[1723749397526,0.869882,57479.0,57478.0,0.000821]
[1723749397747,0.88591263,57479.0,57478.0,0.17237554]
[1723749398398,0.91482479,57479.0,57478.0,0.17237554]
[1723749398599,0.56687179,57479.0,57478.0,0.17237554]
[1723749398805,0.88591263,57479.0,57478.0,0.17237554]
[1723749399030,1.23386563,57479.0,57478.0,0.000821]
[1723749399347,0.93782343,57479.0,57478.0,0.000821]
[1723749399971,1.13052343,57479.0,57478.0,0.000821]
[1723749400197,1.47847643,57479.0,57478.0,0.000821]
[1723749400410,1.48840313,57479.0,57478.0,0.000821]
[1723749401020,1.11153933,57479.0,57478.0,0.000821]
[1723749401205,1.44956097,57479.0,57478.0,0.000821]
[1723749401408,1.45949084,57479.0,57478.0,0.000821]
[1723749401618,1.45949474,57479.0,57478.0,0.000821]
[1723749402032,2.14452693,57479.0,57478.0,0.000821]
[1723749402235,2.3669965,57479.0,57478.0,0.000821]
[1723749402440,1.81859292,57479.0,57478.0,0.000821]
[1723749402641,1.09968692,57479.0,57478.0,0.000821]
[1723749402847,1.43771007,57479.0,57478.0,0.000821]
[1723749403046,2.31510046,57479.0,57478.0,0.000821]
[1723749403169,2.486655,57479.0,57478.0,0.000821]
[1723749403382,0.870215,57457.0,57456.0,0.0011]
[1723749403588,1.30407827,57457.0,57456.0,0.0011]
[1723749403793,0.95599227,57457.0,57456.0,0.0011]
[1723749404048,0.3591,57466.0,57456.0,0.17265454]
[1723749404273,0.08577727,57462.0,57457.0,0.18881999]
[1723749404493,0.174008,57469.0,57457.0,0.18881999]
[1723749404614,0.1,57481.0,57457.0,0.18881999]
[1723749404615,0.173998,57472.0,57462.0,0.17155454]
[1723749404815,0.1833,57479.0,57462.0,0.17155454]
[1723749404816,0.08577727,57471.0,57462.0,0.17155454]
[1723749405216,0.08577727,57471.0,57467.0,0.174012]
[1723749405406,0.08577727,57471.0,57460.0,0.348067]
[1723749405407,0.08577727,57471.0,57468.0,0.22375954]
[1723749405597,0.08577727,57471.0,57468.0,0.17155454]
[1723749405805,0.08577727,57477.0,57468.0,0.17155454]
[1723749406255,0.1886,57488.0,57471.0,0.17155454]
[1723749406383,0.173971,57481.0,57471.0,0.17155454]
[1723749406609,0.08577727,57484.0,57471.0,0.17155454]
[1723749406610,0.347939,57482.0,57472.0,0.1]
[1723749406954,0.25973827,57484.0,57476.0,0.173984]
[1723749407113,0.25973827,57484.0,57472.0,0.19850625]
[1723749407114,0.08577727,57484.0,57472.0,0.1]
[1723749407274,0.08577727,57484.0,57469.0,0.3655]
[1723749407275,0.08577727,57477.0,57463.0,0.3655]
[1723749407477,0.08577727,57471.0,57463.0,0.3655]
[1723749407705,0.25979827,57464.0,57463.0,0.12567451]
[1723749407945,0.08577727,57464.0,57458.0,0.018992]
[1723749408242,0.347937,57482.0,57458.0,0.018992]
[1723749408243,0.3499,57485.0,57463.0,0.17155454]
[1723749408442,0.3499,57485.0,57472.0,0.51545454]
[1723749408443,0.173975,57480.0,57472.0,0.51545454]
[1723749408655,0.08577727,57478.0,57472.0,0.51545454]
[1723749409144,0.173994,57473.0,57472.0,0.17155454]
[1723749409546,0.173994,57473.0,57466.0,0.2616]
[1723749409547,0.348043,57464.0,57457.0,0.3748]
[1723749409750,0.348034,57466.0,57459.0,0.19240374]
[1723749409751,0.08577727,57463.0,57459.0,0.19240374]
[1723749409959,0.08577727,57463.0,57459.0,0.17155454]
[1723749410157,0.08577727,57469.0,57459.0,0.17155454]
[1723749410158,0.34802,57468.0,57459.0,0.17155454]
[1723749410360,0.023,57467.0,57463.0,0.000821]
[1723749410562,0.023,57468.0,57464.0,0.17155454]
[1723749410760,0.023,57468.0,57464.0,0.18879209]
[1723749410761,0.174018,57465.0,57464.0,0.18879209]
[1723749410968,0.174018,57465.0,57463.0,0.000821]
[1723749410969,0.870107,57464.0,57463.0,0.000821]
[1723749411171,1.24115,57464.0,57463.0,0.000821]
[1723749411379,1.58845,57464.0,57463.0,0.000821]
[1723749411625,1.240407,57464.0,57463.0,0.000821]
[1723749412127,0.545064,57464.0,57463.0,0.17237554]
[1723749412407,0.197021,57464.0,57463.0,0.17237554]
[1723749412614,0.545064,57464.0,57463.0,0.18961309]
[1723749412829,0.023,57464.0,57463.0,0.18961309]
[1723749413040,0.023,57468.0,57463.0,0.18961309]
[1723749413246,0.023,57468.0,57464.0,0.20791925]
[1723749413247,0.19701,57468.0,57464.0,0.20791925]
[1723749413451,0.023,57468.0,57464.0,0.17155454]
[1723749413658,0.173998,57472.0,57464.0,0.17155454]
[1723749413865,0.08577727,57469.0,57465.0,0.07206168]
[1723749414069,0.08577727,57469.0,57463.0,0.000821]
[1723749414295,0.522037,57467.0,57466.0,0.17155454]
[1723749414500,0.517037,57467.0,57466.0,0.17155454]
[1723749414908,0.192012,57467.0,57466.0,0.17155454]
[1723749415110,0.023,57467.0,57466.0,0.18879209]
[1723749415320,0.3509,57479.0,57466.0,0.18879209]
[1723749415548,0.08577727,57472.0,57466.0,0.18879209]
[1723749415754,0.08577727,57472.0,57466.0,0.17155454]
[1723749416178,0.174001,57471.0,57466.0,0.17155454]
[1723749416583,0.08577727,57472.0,57466.0,0.17155454]
[1723749416780,0.174001,57471.0,57466.0,0.17155454]
[1723749416992,0.3509,57479.0,57463.0,0.174845]
[1723749416993,0.707079,57492.0,57468.0,0.17155454]
[1723749417196,0.707079,57492.0,57470.0,0.17155454]
[1723749417197,0.00090311,57478.0,57470.0,0.17155454]
[1723749417403,0.08577727,57477.0,57471.0,0.05264545]
[1723749417610,0.08577727,57477.0,57464.0,0.0522906]
[1723749417845,0.08577727,57477.0,57463.0,0.000821]
[1723749417846,0.08577727,57465.0,57463.0,0.000821]
[1723749418056,0.870107,57464.0,57463.0,0.000821]
[1723749418270,0.870107,57464.0,57463.0,0.17237554]
[1723749418684,0.893107,57464.0,57463.0,0.18961309]
[1723749418886,0.08556788,57471.0,57463.0,0.18961309]
[1723749419093,0.023,57470.0,57464.0,0.17155454]
[1723749419292,0.023,57470.0,57465.0,0.01896131]
[1723749419620,0.023,57470.0,57466.0,0.17155454]
[1723749419818,0.43374327,57477.0,57468.0,0.174008]
[1723749419819,0.25976027,57477.0,57468.0,0.174008]
[1723749420022,0.25976027,57477.0,57469.0,0.17155454]
[1723749420023,0.08577727,57471.0,57469.0,0.17155454]
[1723749420147,0.08577727,57471.0,57470.0,0.04331545]
[1723749420148,0.25977727,57471.0,57470.0,0.04331545]
[1723749420355,0.522064,57464.0,57463.0,0.000821]
[1723749420581,1.30392727,57464.0,57463.0,0.000821]
[1723749420768,0.95588427,57464.0,57463.0,0.000821]
[1723749421212,0.97888427,57464.0,57463.0,0.000821]
[1723749421478,0.08577727,57464.0,57463.0,0.17237554]
[1723749421717,0.08577727,57464.0,57463.0,0.18961309]
[1723749421959,0.43382027,57464.0,57463.0,0.000821]
[1723749422194,1.32692727,57464.0,57463.0,0.000821]
[1723749422398,2.23842054,57464.0,57463.0,0.000821]
[1723749422597,1.87432727,57464.0,57463.0,0.000821]
[1723749423027,1.17824127,57464.0,57463.0,0.000821]
[1723749423458,0.10877727,57464.0,57463.0,0.000821]
[1723749423683,0.348014,57469.0,57463.0,0.17237554]
[1723749424011,0.00993122,57476.0,57463.0,0.17237554]
[1723749424012,0.00993122,57476.0,57464.0,0.17155454]
[1723749424224,0.08577727,57470.0,57464.0,0.17155454]
[1723749424394,0.08577727,57484.0,57467.0,0.174011]
[1723749424601,0.173986,57476.0,57467.0,0.174011]
[1723749424757,0.173986,57476.0,57465.0,0.03840661]
[1723749424758,0.08577727,57471.0,57465.0,0.03840661]
[1723749424951,0.08577727,57471.0,57466.0,0.26542881]
[1723749425204,0.08577727,57470.0,57466.0,0.26542881]
[1723749425748,0.08577727,57470.0,57463.0,0.01805855]
[1723749425749,0.870107,57464.0,57463.0,0.000821]
[1723749425972,1.65197027,57464.0,57463.0,0.000821]
[1723749426179,1.66802437,57464.0,57463.0,0.000821]
[1723749426377,1.34298137,57464.0,57463.0,0.000821]
[1723749426630,0.99493837,57464.0,57463.0,0.000821]
[1723749426827,0.97888427,57464.0,57463.0,0.000821]
[1723749427082,0.10877727,57464.0,57463.0,0.000821]
[1723749427279,0.08577727,57464.0,57463.0,0.17237554]
[1723749427483,0.08577727,57464.0,57463.0,0.18961309]
[1723749427610,0.08577727,57464.0,57463.0,0.17237554]
[1723749427816,0.25979827,57464.0,57463.0,0.17237554]
[1723749427998,0.60784127,57464.0,57463.0,0.17237554]
[1723749428413,0.25979827,57464.0,57463.0,0.17237554]
[1723749428611,0.08577727,57464.0,57463.0,0.22510309]
[1723749429012,1.66312727,57464.0,57463.0,0.000821]
[1723749429210,2.05022926,57464.0,57463.0,0.000821]
[1723749429604,2.05022788,57464.0,57463.0,0.000821]
[1723749430125,2.0791781,57464.0,57463.0,0.000821]
[1723749430320,2.43893264,57464.0,57463.0,0.000821]
[1723749430521,3.06853723,57464.0,57463.0,1e-06]
[1723749430784,3.06853723,57464.0,57456.0,0.0011]
[1723749430785,1.925587,57457.0,57456.0,0.0011]
[1723749431011,2.17937915,57457.0,57456.0,0.0011]
[1723749431170,2.15042188,57457.0,57456.0,0.0011]
[1723749431553,1.35424988,57457.0,57456.0,0.0011]
[1723749431752,0.99504988,57457.0,57456.0,0.0011]
[1723749431955,1.32707827,57457.0,57456.0,0.0011]
[1723749432186,1.34314993,57457.0,57456.0,0.0011]
[1723749432601,2.04383593,57457.0,57456.0,0.0011]
[1723749432801,2.14383593,57457.0,57456.0,0.0011]
[1723749433232,1.82470825,57457.0,57456.0,0.0011]
[1723749433378,1.67967827,57457.0,57456.0,0.0011]
[1723749433586,2.04383261,57457.0,57456.0,0.0011]
[1723749433787,2.04383777,57457.0,57456.0,0.0011]
[1723749434630,1.69575177,57457.0,57456.0,0.0011]
[1723749434996,1.32707827,57457.0,57456.0,0.0011]
[1723749436050,1.34315825,57457.0,57456.0,0.0011]
[1723749436241,0.19012298,57457.0,57456.0,0.0011]
[1723749436566,0.08577727,57464.0,57456.0,0.17265454]
[1723749436766,0.08577727,57464.0,57457.0,0.22265999]
[1723749437086,0.348019,57469.0,57457.0,0.22265999]
[1723749437087,0.348015,57469.0,57457.0,0.22265999]
[1723749437197,0.08577727,57470.0,57457.0,0.22265999]
[1723749437408,0.174008,57469.0,57461.0,0.17403]
[1723749437610,0.08577727,57470.0,57462.0,0.18895754]
[1723749437823,0.08577727,57464.0,57462.0,0.17155454]
[1723749438029,0.08577727,57464.0,57456.0,0.001921]
[1723749438230,0.522129,57457.0,57456.0,0.001921]
[1723749438581,1.218301,57457.0,57456.0,0.001921]
[1723749439337,1.241301,57457.0,57456.0,0.001921]
[1723749439963,0.893215,57457.0,57456.0,0.001921]
[1723749440931,1.589387,57457.0,57456.0,0.001921]
[1723749441133,1.60548639,57457.0,57456.0,0.001921]
[1723749442166,1.63451145,57457.0,57456.0,0.001921]
[1723749442362,1.80606599,57457.0,57456.0,0.001921]
[1723749442563,1.77704093,57457.0,57456.0,0.001921]
[1723749442781,1.80606858,57457.0,57456.0,0.001921]
[1723749442997,1.77704093,57457.0,57456.0,0.001921]
[1723749443220,1.8060683,57457.0,57456.0,0.001921]
[1723749443639,1.77704093,57457.0,57456.0,0.001921]
[1723749444173,1.25740039,57457.0,57456.0,0.001921]
[1723749444384,1.241301,57457.0,57456.0,0.001921]
[1723749444993,1.428956,57457.0,57456.0,0.001921]
[1723749445192,1.428956,57457.0,57456.0,1e-06]
[1723749445193,2.5157459,57457.0,57456.0,1e-06]
[1723749445451,2.6157459,57457.0,57456.0,1e-06]
[1723749445640,2.74469106,57457.0,57456.0,1e-06]
[1723749445817,1.566796,57442.0,57441.0,0.000819]
[1723749446016,2.03717327,57442.0,57441.0,0.000819]
[1723749446860,1.32739627,57442.0,57441.0,0.000819]
[1723749447284,1.67557327,57442.0,57441.0,0.000819]
[1723749447492,1.32739627,57442.0,57441.0,0.000819]
[1723749447894,1.67557327,57442.0,57441.0,0.000819]
[1723749448106,1.88076624,57442.0,57441.0,0.000819]
[1723749448315,2.8850544,57442.0,57441.0,1e-06]
[1723749448525,2.930155,57442.0,57441.0,1e-06]
[1723749448724,2.551978,57442.0,57441.0,1e-06]
[1723749449156,2.561978,57442.0,57441.0,1e-06]
[1723749449345,1.911487,57424.0,57423.0,0.00821]
[1723749449547,1.66915569,57424.0,57423.0,0.00821]
[1723749449747,1.32087042,57424.0,57423.0,0.00821]
[1723749449964,1.30477827,57424.0,57423.0,0.00821]
[1723749450791,0.174141,57425.0,57423.0,0.52956454]
[1723749450995,0.25992027,57424.0,57423.0,0.35801]
[1723749451220,1.30477827,57424.0,57423.0,0.00821]
[1723749451425,1.7835421,57424.0,57423.0,0.00821]
[1723749451633,1.65306427,57424.0,57423.0,0.00821]
[1723749451841,1.30477827,57424.0,57423.0,0.00571]
[1723749452041,0.95649227,57424.0,57423.0,0.00571]
[1723749452263,0.97949227,57424.0,57423.0,0.00571]
[1723749452420,1.32777827,57424.0,57423.0,0.00571]
[1723749452994,1.32777827,57424.0,57423.0,0.00321]
[1723749453202,1.8436703,57424.0,57423.0,0.00321]
[1723749453630,1.5953843,57424.0,57423.0,0.00321]
[1723749453848,2.32056427,57424.0,57423.0,0.00321]
[1723749454065,2.33666711,57424.0,57423.0,0.00321]
[1723749454285,2.50822165,57424.0,57423.0,0.00321]
[1723749454841,2.33666711,57424.0,57423.0,0.00321]
[1723749455052,1.44388111,57424.0,57423.0,0.00321]
[1723749455441,2.31200765,57424.0,57423.0,0.00321]
[1723749455868,2.64150481,57424.0,57423.0,1e-06]
[1723749456070,2.68660668,57424.0,57423.0,1e-06]
[1723749456272,2.65759742,57424.0,57423.0,1e-06]
[1723749456475,2.82914938,57424.0,57423.0,1e-06]
[1723749457408,0.01,57423.0,57405.0,0.52287362]
[1723749457580,1.48524427,57414.0,57413.0,0.00568]
[1723749457819,2.1980283,57414.0,57413.0,0.00568]
[1723749458040,1.9778283,57414.0,57413.0,0.00568]
[1723749458214,2.13329281,57414.0,57413.0,0.00568]
[1723749458667,2.31008527,57414.0,57413.0,0.00568]
[1723749459086,1.96173827,57414.0,57413.0,0.00568]
[1723749459294,1.77633827,57414.0,57413.0,0.00568]
[1723749459503,1.67633827,57414.0,57413.0,0.00568]
[1723749459890,1.84789281,57414.0,57413.0,0.00568]
[1723749460080,2.31233669,57414.0,57413.0,0.00568]
[1723749460392,2.32233669,57414.0,57413.0,1e-06]
[1723749460545,2.68456107,57414.0,57413.0,1e-06]
[1723749460733,2.86611561,57414.0,57413.0,1e-06]
[1723749461033,2.86611561,57414.0,57405.0,5.7e-07]
[1723749461034,1.916172,57406.0,57405.0,5.7e-07]
[1723749461380,2.47500069,57406.0,57405.0,5.7e-07]
[1723749461586,3.20746989,57406.0,57405.0,5.7e-07]
[1723749461914,3.22046989,57406.0,57405.0,5.7e-07]
[1723749462115,1.916409,57399.0,57398.0,1e-06]
[1723749462316,3.08303023,57399.0,57398.0,1e-06]
[1723749462448,3.18303023,57399.0,57398.0,1e-06]
[1723749462649,1.56838,57384.0,57377.0,0.3528]
[1723749462873,1.65415727,57384.0,57371.0,0.86746362]
[1723749463048,2.17424081,57384.0,57371.0,0.3528]
[1723749463250,3.16136981,57384.0,57383.0,1e-06]
[1723749463456,3.17747825,57384.0,57383.0,1e-06]
[1723749463701,2.82894925,57384.0,57383.0,1e-06]
[1723749463908,3.00050379,57384.0,57383.0,1e-06]
[1723749464152,2.47731181,57384.0,57383.0,1e-06]
[1723749464264,0.894322,57384.0,57383.0,1e-06]
[1723749464488,0.871322,57384.0,57383.0,1e-06]
[1723749465695,1.39140554,57384.0,57383.0,1e-06]
[1723749465896,2.19583454,57384.0,57383.0,1e-06]
[1723749466098,2.36738908,57384.0,57383.0,1e-06]
[1723749466339,2.21883454,57384.0,57383.0,1e-06]
[1723749466548,1.86293454,57384.0,57383.0,1e-06]
[1723749466780,2.78456354,57384.0,57383.0,1e-06]
[1723749466981,2.78456354,57384.0,57361.0,0.00819]
[1723749466982,1.220233,57366.0,57361.0,0.00819]
[1723749467185,1.82620281,57366.0,57361.0,0.00819]
[1723749467590,1.84920281,57366.0,57361.0,0.00819]
[1723749467995,1.94920281,57366.0,57361.0,0.00819]
[1723749468174,2.13930281,57366.0,57365.0,1e-06]
[1723749468653,1.94920281,57366.0,57365.0,1e-06]
[1723749469302,2.12075735,57366.0,57365.0,1e-06]
[1723749469499,2.46939535,57366.0,57365.0,1e-06]
[1723749470413,2.49939535,57366.0,57365.0,1e-06]
[1723749470823,1.917844,57356.0,57355.0,0.00822]
[1723749471200,1.84947681,57356.0,57355.0,0.00822]
[1723749471373,1.94947681,57356.0,57355.0,0.00822]
[1723749471741,1.77792227,57356.0,57355.0,0.00822]
[1723749471962,1.32922327,57356.0,57355.0,0.00822]
[1723749472783,0.98052427,57356.0,57355.0,0.00822]
[1723749472982,0.08577727,57372.0,57355.0,0.41481654]
[1723749473196,0.08577727,57372.0,57356.0,0.17155454]
[1723749473197,0.174338,57360.0,57356.0,0.17155454]
[1723749473396,0.174338,57360.0,57357.0,0.09974165]
[1723749473597,0.348651,57364.0,57359.0,0.3459]
[1723749473770,0.08577727,57366.0,57360.0,0.17155454]
[1723749473771,0.174334,57361.0,57360.0,0.17155454]
[1723749473973,0.174334,57361.0,57359.0,0.3459]
[1723749473974,0.523012,57360.0,57359.0,0.3459]
[1723749474301,0.95746427,57360.0,57359.0,0.3459]
[1723749474547,0.523012,57360.0,57359.0,0.3459]
[1723749474723,0.546012,57360.0,57359.0,0.3459]
[1723749475070,0.894687,57360.0,57359.0,0.3459]
[1723749475220,1.243362,57360.0,57359.0,0.3459]
[1723749475421,0.894687,57360.0,57359.0,0.3459]
[1723749475584,1.243362,57360.0,57359.0,0.3459]
[1723749476185,0.894687,57360.0,57359.0,0.3459]
[1723749476724,0.894687,57360.0,57355.0,0.20702]
[1723749476725,0.871747,57356.0,57355.0,0.20702]
[1723749476985,0.871747,57356.0,57355.0,0.00822]
[1723749476986,1.30622327,57356.0,57355.0,0.00822]
[1723749477205,1.82647681,57356.0,57355.0,0.00822]
[1723749477425,2.19817581,57356.0,57355.0,0.00822]
[1723749477781,2.38583206,57356.0,57355.0,0.00822]
[1723749477983,2.38583206,57356.0,57341.0,0.192641]
[1723749477984,0.87196,57342.0,57341.0,0.192641]
[1723749478205,0.28316927,57342.0,57341.0,0.192641]
[1723749478359,0.63195327,57342.0,57341.0,0.192641]
[1723749478810,0.08577727,57348.0,57341.0,0.38460082]
[1723749479015,0.26016927,57342.0,57341.0,0.192641]
[1723749479219,0.174392,57342.0,57341.0,0.192641]
[1723749479489,0.523176,57342.0,57341.0,0.192641]
[1723749479671,0.174392,57342.0,57341.0,0.557641]
[1723749479880,0.348767,57345.0,57341.0,0.557641]
[1723749480051,0.08577727,57342.0,57341.0,0.557641]
[1723749480254,0.08577727,57348.0,57341.0,0.557641]
[1723749480255,0.08577727,57348.0,57341.0,0.78610082]
[1723749480459,0.08577727,57348.0,57341.0,0.22845982]
[1723749480460,0.08577727,57342.0,57341.0,0.22845982]
[1723749480689,1.220765,57341.0,57340.0,0.0114118]
[1723749480907,1.611965,57341.0,57340.0,0.0114118]
[1723749481114,2.59726054,57341.0,57340.0,0.0114118]
[1723749481321,2.75265408,57341.0,57340.0,0.0114118]
[1723749481533,2.42002457,57341.0,57340.0,0.0114118]
[1723749482105,1.88027003,57341.0,57340.0,0.0114118]
[1723749482860,1.25992549,57341.0,57340.0,0.0114118]
[1723749483061,1.243765,57341.0,57340.0,0.0114118]
[1723749483497,1.243765,57341.0,57325.0,0.52288362]
[1723749483498,0.894975,57341.0,57322.0,0.000821]
[1723749483705,0.51466362,57346.0,57307.0,0.357215]
[1723749483706,0.872477,57308.0,57307.0,0.00822]
[1723749483872,0.97441246,57308.0,57307.0,0.00822]
[1723749484072,1.30724527,57308.0,57307.0,0.00822]
[1723749484334,1.30724527,57308.0,57297.0,0.19473]
[1723749484335,0.872567,57302.0,57297.0,0.00823]
[1723749484541,1.65639827,57302.0,57297.0,0.00823]
[1723749484680,1.67939827,57302.0,57297.0,0.00823]
[1723749484882,1.34652362,57302.0,57297.0,0.00823]
[1723749485080,1.86710211,57302.0,57297.0,0.00823]
[1723749485283,0.523669,57288.0,57287.0,0.0082]
[1723749485491,1.82833981,57288.0,57287.0,0.0082]
[1723749485691,1.9444881,57288.0,57287.0,0.0082]
[1723749486241,0.08577727,57294.0,57287.0,0.0082]
[1723749486242,0.349084,57293.0,57287.0,0.0082]
[1723749486405,0.08577727,57294.0,57289.0,0.1866]
[1723749486611,0.08577727,57294.0,57291.0,0.3417]
[1723749487299,0.523632,57292.0,57291.0,0.3417]
[1723749487666,0.546632,57292.0,57291.0,0.3417]
[1723749487868,0.023,57292.0,57291.0,0.3417]
[1723749488165,0.349015,57305.0,57291.0,0.51325454]
[1723749488368,0.174503,57306.0,57298.0,0.1866]
[1723749488574,0.51466362,57313.0,57300.0,0.3417]
[1723749488575,0.348963,57313.0,57300.0,0.3417]
[1723749488824,0.08577727,57314.0,57302.0,0.3417]
[1723749488825,0.08577727,57308.0,57302.0,0.3417]
[1723749489032,0.08577727,57308.0,57303.0,0.17155454]
[1723749489441,0.08577727,57308.0,57302.0,0.3417]
[1723749489442,0.17451,57303.0,57302.0,0.3417]
[1723749489688,0.17451,57303.0,57295.0,0.3636]
[1723749489689,0.349021,57303.0,57295.0,0.3636]
[1723749489879,0.60937327,57296.0,57295.0,0.3636]
[1723749490251,0.95843727,57296.0,57295.0,0.3636]
[1723749490464,1.30750127,57296.0,57295.0,0.3636]
[1723749490624,0.98143727,57296.0,57295.0,0.3636]
[1723749491443,0.872705,57293.0,57292.0,0.1851]
[1723749491623,0.523651,57290.0,57289.0,0.3636]
[1723749491832,0.08577727,57302.0,57289.0,0.53515454]
[1723749491969,0.348989,57309.0,57283.0,0.00823]
[1723749491970,0.348936,57318.0,57302.0,0.3636]
[1723749492173,0.348936,57318.0,57300.0,0.1851]
[1723749492174,0.08577727,57309.0,57301.0,0.3636]
[1723749492397,0.872567,57302.0,57301.0,0.3636]
[1723749493178,0.52354,57302.0,57301.0,0.3636]
[1723749493414,1.244594,57302.0,57301.0,0.3636]
[1723749493783,1.244594,57302.0,57294.0,0.1963]
[1723749493784,0.023,57302.0,57294.0,0.1963]
[1723749494010,0.08577727,57301.0,57295.0,0.17155454]
[1723749494214,0.174523,57299.0,57296.0,0.3567]
[1723749494370,0.10877727,57301.0,57296.0,0.52825454]
[1723749494580,0.348998,57307.0,57297.0,0.17155454]
[1723749494836,0.08577727,57323.0,57298.0,0.76894844]
[1723749495031,0.51466362,57316.0,57299.0,0.3694]
[1723749495252,0.08577727,57323.0,57309.0,0.3694]
[1723749495467,0.08577727,57323.0,57310.0,0.17155454]
[1723749495669,0.174476,57315.0,57310.0,0.17155454]
[1723749495872,0.348924,57319.0,57310.0,0.17155454]
[1723749496116,0.08577727,57323.0,57312.0,0.3495]
[1723749496325,0.348813,57338.0,57314.0,0.3495]
[1723749496474,0.348813,57338.0,57313.0,0.17155454]
[1723749496475,0.02997031,57345.0,57320.0,0.3781]
[1723749496689,0.0009053,57345.0,57327.0,0.3781]
[1723749496889,0.0009053,57345.0,57322.0,0.182]
[1723749496890,0.0009053,57345.0,57330.0,0.3781]
[1723749497117,0.08577727,57341.0,57332.0,0.3781]
[1723749497318,0.08577727,57341.0,57333.0,0.17155454]
[1723749497522,0.0009053,57345.0,57334.0,0.3781]
[1723749497724,0.0009053,57345.0,57333.0,0.24426971]
[1723749497725,0.08577727,57342.0,57338.0,0.3689]
[1723749497922,0.174401,57339.0,57338.0,0.3689]
[1723749498079,0.872005,57339.0,57338.0,0.3689]
[1723749498708,0.08577727,57342.0,57315.0,0.3689]
[1723749498902,0.08577727,57342.0,57314.0,0.1999]
[1723749498903,0.26021927,57326.0,57322.0,0.3689]
[1723749499109,0.174447,57324.0,57323.0,0.17155454]
[1723749499353,0.08577727,57326.0,57323.0,0.17155454]
[1723749499604,0.523341,57324.0,57323.0,0.17155454]
[1723749500031,0.174447,57324.0,57323.0,0.17155454]
[1723749500156,0.08577727,57326.0,57323.0,0.17155454]
[1723749500356,0.08577727,57342.0,57326.0,0.3689]
[1723749500558,0.34879,57341.0,57328.0,0.54045454]
[1723749500785,0.08577727,57336.0,57334.0,0.3689]
[1723749500994,0.26018727,57336.0,57335.0,0.17155454]
[1723749501194,0.26018727,57336.0,57334.0,0.3689]
[1723749501195,0.174413,57335.0,57334.0,0.3689]
[1723749501400,0.08577727,57336.0,57309.0,0.537291]
[1723749501611,0.08577727,57316.0,57310.0,0.17155454]
[1723749501946,0.08577727,57328.0,57311.0,0.17155454]
[1723749502153,0.08577727,57322.0,57315.0,0.3522]
[1723749502412,0.08577727,57322.0,57316.0,0.17030454]
[1723749502616,0.08577727,57322.0,57315.0,0.3522]
[1723749502617,0.348942,57316.0,57315.0,0.3522]
[1723749502819,0.523413,57316.0,57315.0,0.3522]
[1723749503478,0.523413,57316.0,57315.0,0.35095]
[1723749503702,0.174471,57316.0,57315.0,0.35095]
[1723749504113,0.174492,57309.0,57308.0,0.1879]
[1723749504339,0.174492,57309.0,57308.0,0.2879]
[1723749504340,0.523477,57309.0,57308.0,0.2879]
[1723749504511,0.174492,57309.0,57308.0,0.2879]
[1723749504717,0.34896,57314.0,57308.0,0.2879]